fUST/lending_fUST_20250720
["ID","MTS","AMOUNT","RATE_DAILY","PERIOD"]
[373346844,1752958242349,-9423.11190732,0.00019934,2]
[373346845,1752958242358,-1149.19,0.00019966,2]
[373346846,1752958242368,-460.0,0.00019966,2]
[373346848,1752958242377,-1173.99,0.00019966,2]
[373346850,1752958242387,-492.85,0.00019966,2]
[373346851,1752958242397,-460.0,0.00019966,2]
[373346853,1752958242406,-627.36,0.00019966,2]
[373346854,1752958242415,-1624.78,0.00019966,2]
[373346855,1752958242425,-523.23,0.00019967,2]
[373346856,1752958242435,-460.0,0.00019967,2]
[373346857,1752958242444,-460.0,0.00019967,2]
[373346858,1752958242454,-217.68,0.00019967,2]
[373346859,1752958242463,-460.0,0.00019967,2]
[373346860,1752958242472,-1323.15,0.00019967,2]
[373346861,1752958242482,-460.0,0.00019967,2]
[373346862,1752958242492,-460.0,0.00019967,2]
[373346863,1752958242502,-678.62,0.00019967,2]
[373346864,1752958242512,-513.41,0.00019967,2]
[373346865,1752958242522,-460.0,0.00019967,2]
[373346866,1752958242532,-460.0,0.00019967,2]
[373346867,1752958242541,-1307.67,0.00019967,2]
[373346868,1752958242550,-460.0,0.00019968,2]
[373346869,1752958242560,-648.93,0.00019968,2]
[373346870,1752958242570,-490.63,0.00019968,2]
[373346871,1752958242579,-1910.11348581,0.00019973,2]
[373346872,1752958242588,-571.33485352,0.00019973,2]
[373346873,1752958242598,-500.0,0.00019973,2]
[373346874,1752958242607,-460.0,0.00019987,2]
[373346875,1752958242616,-856.82,0.00019987,2]
[373346876,1752958242626,-732.6,0.00019987,2]
[373346877,1752958242635,-460.0,0.00019987,2]
[373346878,1752958242646,-937.34,0.00019987,2]
[373346879,1752958242655,-200.0,0.00019999,2]
[373346881,1752958242665,-200.0,0.00019999,2]
[373346883,1752958242674,-216.14992921,0.00019999,2]
[373346885,1752958242684,-11230.48444009,0.0002,2]
[373346887,1752958242693,-8182.36496867,0.0002,2]
[373346888,1752958242703,-3193.95892131,0.0002,2]
[373346890,1752958242712,-362.6568148,0.0002,2]
[373346892,1752958242721,-71504.53584913,0.0002,2]
[373346894,1752958242730,-5929.79780296,0.0002,2]
[373346896,1752958242739,-71682.65200165,0.0002,2]
[373346898,1752958242749,-14300.23978458,0.0002,2]
[373346900,1752958242758,-151.0,0.0002,2]
[373346902,1752958242767,-151.0,0.0002,2]
[373346904,1752958242776,-151.0,0.0002,2]
[373346906,1752958242786,-151.0,0.0002,2]
[373346908,1752958242795,-151.0,0.0002,2]
[373346909,1752958242805,-151.0,0.0002,2]
[373346910,1752958242814,-151.0,0.0002,2]
[373346911,1752958242823,-151.0,0.0002,2]
[373346912,1752958242833,-151.0,0.0002,2]
[373346913,1752958242842,-151.0,0.0002,2]
[373346914,1752958242857,-151.0,0.0002,2]
[373346915,1752958242866,-151.0,0.0002,2]
[373346916,1752958242876,-151.0,0.0002,2]
[373346917,1752958242886,-151.0,0.0002,2]
[373346918,1752958242897,-151.0,0.0002,2]
[373346919,1752958242907,-151.0,0.0002,2]
[373346920,1752958242916,-151.0,0.0002,2]
[373346921,1752958242926,-151.0,0.0002,2]
[373346922,1752958242935,-151.0,0.0002,2]
[373346923,1752958242945,-151.536565,0.0002,2]
[373346924,1752958242955,-333.772377,0.0002,2]
[373346925,1752958242968,-333.772377,0.0002,2]
[373346926,1752958242979,-333.772377,0.0002,2]
[373346927,1752958242989,-333.772377,0.0002,2]
[373346928,1752958242999,-151.0,0.0002,2]
[373346929,1752958243008,-234.576232,0.0002,2]
[373346930,1752958243018,-151.0,0.0002,2]
[373346931,1752958243028,-151.0,0.0002,2]
[373346932,1752958243038,-151.0,0.0002,2]
[373346933,1752958243047,-151.0,0.0002,2]
[373346934,1752958243057,-151.0,0.0002,2]
[373346935,1752958243067,-1105.184741,0.0002,2]
[373346936,1752958243077,-1105.184741,0.0002,2]
[373346937,1752958243087,-151.0,0.0002,2]
[373346938,1752958243099,-1105.184741,0.0002,2]
[373346939,1752958243110,-1105.184741,0.0002,2]
[373346940,1752958243119,-151.0,0.00020107,2]
[373346941,1752958243129,-151.0,0.00020107,2]
[373346942,1752958243140,-151.0,0.00020107,2]
[373346943,1752958243149,-151.0,0.00020107,2]
[373346944,1752958243159,-151.0,0.00020107,2]
[373346945,1752958243168,-151.0,0.00020107,2]
[373346946,1752958243178,-151.0,0.00020107,2]
[373346947,1752958243188,-151.0,0.00020107,2]
[373346948,1752958243198,-151.0,0.00020107,2]
[373346949,1752958243208,-151.0,0.00020107,2]
[373346950,1752958243217,-151.0,0.00020107,2]
[373346951,1752958243228,-151.0,0.00020107,2]
[373346952,1752958243237,-241.619572,0.00020107,2]
[373346953,1752958243247,-241.619572,0.00020107,2]
[373346954,1752958243257,-151.0,0.00020107,2]
[373346955,1752958243267,-151.0,0.00020107,2]
[373346956,1752958243276,-151.0,0.00020107,2]
[373346957,1752958243286,-151.0,0.00020107,2]
[373346958,1752958243296,-253.080943,0.00020107,2]
[373346959,1752958243306,-253.080943,0.00020107,2]
[373346960,1752958243315,-151.0,0.00020107,2]
[373346961,1752958243325,-151.0,0.00020107,2]
[373346962,1752958243335,-250.0,0.00020123,2]
[373346963,1752958243345,-6856.66392987,0.00020141,2]
[373346964,1752958243463,-2566.44797745,0.00020141,2]
[373346965,1752958243473,-1000.0,0.00020165,2]
[373346966,1752958243482,-236.194635,0.00020187,2]
[373346967,1752958243491,-1149.19,0.0002024,2]
[373346968,1752958243501,-460.0,0.0002024,2]
[373346969,1752958243511,-1173.99,0.0002024,2]
[373346970,1752958243521,-492.85,0.0002024,2]
[373346971,1752958243530,-460.0,0.0002024,2]
[373346972,1752958243539,-627.36,0.0002024,2]
[373346973,1752958243549,-921.94654372,0.0002024,2]
[373346974,1752958243654,-460.0,0.0001887,2]
[373346975,1752958243663,-3.13746388,0.0002024,2]
[373346976,1752958243675,-699.6959924,0.0002024,2]
[373346977,1752958243685,-523.23,0.00020241,2]
[373346978,1752958243694,-460.0,0.00020241,2]
[373346979,1752958243703,-460.0,0.00020241,2]
[373346980,1752958243713,-1087.79888863,0.00020241,2]
[373346981,1752958243725,-235.35111137,0.00020241,2]
[373346982,1752958243734,-460.0,0.00020241,2]
[373346983,1752958243743,-460.0,0.00020241,2]
[373346984,1752958243753,-678.62,0.00020241,2]
[373346985,1752958243763,-513.41,0.00020241,2]
[373346986,1752958243772,-460.0,0.00020241,2]
[373346987,1752958243781,-460.0,0.00020241,2]
[373346988,1752958243791,-949.3831367,0.00020241,2]
[373346989,1752958243886,-460.0,0.0001887,2]
[373346990,1752958243897,-16.07036022,0.00018871,2]
[373346991,1752958243910,-443.92963978,0.00018871,2]
[373346992,1752958243920,-460.0,0.00019144,2]
[373346993,1752958243929,-460.0,0.00019145,2]
[373346994,1752958243939,-515.49344338,0.00019418,2]
[373346995,1752958243949,-358.2868633,0.00020241,2]
[373346996,1752958243958,-460.0,0.00020242,2]
[373346997,1752958243968,-648.93,0.00020242,2]
[373346998,1752958243978,-490.63,0.00020242,2]
[373346999,1752958243987,-652.46,0.0002025,3]
[373347000,1752958243997,-326.22,0.0002025,3]
[373347001,1752958244007,-1794.28,0.00020255,3]
[373347002,1752958244016,-897.14,0.00020255,3]
[373347003,1752958244026,-448.56,0.00020255,3]
[373347004,1752958244035,-460.0,0.00020261,2]
[373347005,1752958244044,-856.82,0.00020261,2]
[373347006,1752958244053,-732.6,0.00020261,2]
[373347007,1752958244063,-460.0,0.00020261,2]
[373347008,1752958244072,-937.34,0.00020261,2]
[373347009,1752958244081,-178.1115364,0.00020274,2]
[373347010,1752958244090,-178.1115364,0.00020274,2]
[373347011,1752958244103,-500.0,0.00020313,2]
[373347012,1752958244113,-500.0,0.00020313,2]
[373347013,1752958244122,-500.0,0.00020313,2]
[373347014,1752958244132,-266.08392947,0.00020313,2]
[373347015,1752958244142,-500.0,0.00020313,2]
[373347016,1752958244152,-342.33819075,0.00020313,2]
[373347017,1752958244162,-2327.95386025,0.00020314,3]
[373347066,1752958246150,-1659.83884194,0.00020314,3]
[373347068,1752958246160,-3335.97822547,0.00020314,3]
[373347098,1752959037684,212.575171,0.00013699,2]
[373347101,1752959189007,150.0,0.00014702,2]
[373347102,1752959253570,150.0,0.00014707,2]
[373347204,1752959432199,-300.0,0.00018867,2]
[373347205,1752959432209,-460.0,0.00018868,2]
[373347206,1752959432220,-1053.43,0.00018868,2]
[373347207,1752959432231,-460.0,0.00018868,2]
[373347208,1752959432240,-661.1180884,0.00018868,2]
[373347209,1752959432252,-603.1819116,0.00018868,2]
[373347210,1752959432262,-5.88261189,0.00018868,2]
[373347211,1752959432275,-454.11738811,0.00018868,2]
[373347212,1752959432285,-460.0,0.00018868,2]
[373347214,1752959432294,-460.0,0.00018868,2]
[373347215,1752959432304,-460.0,0.00018868,2]
[373347216,1752959432315,-1122.31,0.00018868,2]
[373347217,1752959432325,-249.27,0.00018868,2]
[373347218,1752959432334,-460.0,0.00018868,2]
[373347219,1752959432345,-460.0,0.00018868,2]
[373347220,1752959432513,-470.95,0.00018868,2]
[373347221,1752959432524,-490.42,0.00018868,2]
[373347222,1752959432533,-460.0,0.00018868,2]
[373347223,1752959432543,-575.08,0.00018868,2]
[373347224,1752959432552,-460.0,0.00018868,2]
[373347225,1752959432562,-460.0,0.00018868,2]
[373347226,1752959432571,-460.0,0.00018868,2]
[373347227,1752959432581,-460.0,0.00018868,2]
[373347228,1752959432592,-460.0,0.00018868,2]
[373347229,1752959432601,-1489.39,0.00018868,2]
[373347230,1752959432611,-460.0,0.00018869,2]
[373347231,1752959432621,-462.00071874,0.00018869,2]
[373347232,1752959432631,-460.0,0.00018869,2]
[373347233,1752959432640,-460.0,0.00018869,2]
[373347234,1752959432651,-461.92584145,0.00018869,2]
[373347235,1752959432660,-460.0,0.00018869,2]
[373347236,1752959432672,-460.0,0.00018869,2]
[373347237,1752959432685,-461.77073188,0.00018869,2]
[373347238,1752959432695,-178.25556374,0.00018869,2]
[373347239,1752959432706,-462.20486985,0.00018869,2]
[373347240,1752959432717,-460.0,0.00018869,2]
[373347241,1752959432727,-225.65865543,0.00018869,2]
[373347242,1752959432737,-263.57426695,0.00018869,2]
[373347243,1752959432747,-745.87867833,0.00018869,2]
[373347274,1752959438170,-460.0,0.00018868,2]
[373347275,1752959438180,-254.12132167,0.00018869,2]
[373347276,1752959438189,-460.0,0.00018869,2]
[373347277,1752959438199,-142.2894244,0.00018869,2]
[373347278,1752959438277,-317.7105756,0.00018869,2]
[373347279,1752959438286,-197.2894244,0.00018869,2]
[373347280,1752959438333,-262.7105756,0.00018869,2]
[373347282,1752959438343,-460.0,0.00018869,2]
[373347283,1752959438352,-460.0,0.00018869,2]
[373347284,1752959438361,-460.0,0.00018869,2]
[373347286,1752959438370,-460.0,0.00018869,2]
[373347288,1752959438379,-460.0,0.00018869,2]
[373347290,1752959438388,-460.0,0.00018869,2]
[373347292,1752959438397,-460.0,0.00018869,2]
[373347294,1752959438407,-460.0,0.00018869,2]
[373347296,1752959438416,-460.0,0.00018869,2]
[373347298,1752959438426,-155.44150554,0.00018869,2]
[373347300,1752959438435,-460.0,0.00018869,2]
[373347302,1752959438444,-460.0,0.00018869,2]
[373347304,1752959438453,-462.91791883,0.00018869,2]
[373347307,1752959438462,-460.0,0.00018869,2]
[373347309,1752959438472,-460.0,0.00018869,2]
[373347311,1752959438481,-480.89362168,0.00018869,2]
[373347313,1752959438490,-460.0,0.00018869,2]
[373347315,1752959438499,-460.0,0.00018869,2]
[373347317,1752959438508,-460.0,0.00018869,2]
[373347319,1752959438519,-461.6212784,0.00018869,2]
[373347321,1752959438527,-460.0,0.00018869,2]
[373347323,1752959438536,-460.0,0.00018869,2]
[373347325,1752959438545,-460.0,0.00018869,2]
[373347327,1752959438554,-442.57590828,0.00018869,2]
[373347329,1752959438563,-594.86,0.00018869,2]
[373347331,1752959438572,-653.24,0.00018869,2]
[373347333,1752959438581,-460.0,0.00018869,2]
[373347335,1752959438590,-460.0,0.00018869,2]
[373347337,1752959438598,-460.0,0.00018869,2]
[373347338,1752959438607,-460.0,0.00018869,2]
[373347341,1752959438617,-460.0,0.00018869,2]
[373347342,1752959438626,-460.0,0.00018869,2]
[373347344,1752959438635,-460.0,0.00018869,2]
[373347347,1752959438644,-460.0,0.00018869,2]
[373347348,1752959438652,-460.0,0.00018869,2]
[373347350,1752959438661,-460.0,0.00018869,2]
[373347352,1752959438670,-460.0,0.00018869,2]
[373347354,1752959438683,-460.0,0.00018869,2]
[373347356,1752959438692,-460.0,0.00018869,2]
[373347358,1752959438701,-460.0,0.00018869,2]
[373347361,1752959438712,-460.0,0.00018869,2]
[373347363,1752959438721,-460.0,0.00018869,2]
[373347365,1752959438730,-460.0,0.00018869,2]
[373347367,1752959438739,-460.0,0.00018869,2]
[373347369,1752959438749,-460.0,0.0001887,2]
[373347371,1752959438759,-460.0,0.0001887,2]
[373347373,1752959438768,-671.0,0.0001887,2]
[373347375,1752959438777,-460.0,0.0001887,2]
[373347377,1752959438786,-151.38205073,0.0001887,2]
[373347379,1752959438795,-151.0,0.0001887,2]
[373347381,1752959438804,-151.56803976,0.0001887,2]
[373347383,1752959438813,-151.0,0.0001887,2]
[373347385,1752959438822,-151.0,0.0001887,2]
[373347387,1752959438831,-500.0,0.0001887,2]
[373347389,1752959438840,-151.0,0.0001887,2]
[373347391,1752959438850,-151.0,0.0001887,2]
[373347392,1752959438860,-151.0,0.0001887,2]
[373347395,1752959438869,-151.0,0.0001887,2]
[373347396,1752959438879,-151.0,0.0001887,2]
[373347399,1752959438889,-158.43099302,0.0001887,2]
[373347401,1752959438898,-151.0,0.0001887,2]
[373347402,1752959438908,-151.0,0.0001887,2]
[373347405,1752959438918,-184.76751144,0.0001887,2]
[373347406,1752959438927,-151.0,0.0001887,2]
[373347408,1752959438936,-151.0,0.0001887,2]
[373347411,1752959438946,-245.0,0.0001887,2]
[373347413,1752959438955,-151.17869458,0.0001887,2]
[373347415,1752959438964,-151.0,0.0001887,2]
[373347417,1752959438974,-151.0,0.0001887,2]
[373347419,1752959438984,-151.0,0.0001887,2]
[373347421,1752959438994,-532.66,0.0001887,2]
[373347423,1752959439003,-1198.7,0.0001887,2]
[373347425,1752959439012,-460.0,0.0001887,2]
[373347427,1752959439021,-460.0,0.0001887,2]
[373347429,1752959439030,-460.0,0.0001887,2]
[373347431,1752959439040,-460.0,0.0001887,2]
[373347433,1752959439049,-721.24,0.0001887,2]
[373347435,1752959439058,-857.57,0.0001887,2]
[373347437,1752959439068,-546.0,0.0001887,2]
[373347439,1752959439077,-460.0,0.0001887,2]
[373347441,1752959439086,-898.29,0.0001887,2]
[373347443,1752959439096,-1977.71998015,0.000189,2]
[373347445,1752959439105,-1053.43,0.00019142,2]
[373347447,1752959439115,-1264.3,0.00019142,2]
[373347449,1752959439125,-460.0,0.00019142,2]
[373347451,1752959439135,-1122.31,0.00019142,2]
[373347453,1752959439144,-470.95,0.00019142,2]
[373347455,1752959439154,-490.42,0.00019142,2]
[373347457,1752959439165,-460.0,0.00019142,2]
[373347459,1752959439174,-575.08,0.00019142,2]
[373347461,1752959439183,-392.51,0.00019142,2]
[373347463,1752959439193,-460.0,0.00019142,2]
[373347465,1752959439203,-1489.39,0.00019142,2]
[373347467,1752959439212,-460.0,0.00019143,2]
[373347469,1752959439221,-460.0,0.00019143,2]
[373347471,1752959439232,-460.0,0.00019143,2]
[373347473,1752959439241,-460.0,0.00019143,2]
[373347475,1752959439251,-460.0,0.00019143,2]
[373347477,1752959439260,-460.0,0.00019143,2]
[373347479,1752959439269,-460.0,0.00019143,2]
[373347481,1752959439279,-460.0,0.00019143,2]
[373347483,1752959439289,-460.0,0.00019143,2]
[373347485,1752959439299,-460.0,0.00019143,2]
[373347487,1752959439308,-460.0,0.00019143,2]
[373347489,1752959439318,-460.0,0.00019143,2]
[373347491,1752959439327,-594.86,0.00019143,2]
[373347493,1752959439338,-653.24,0.00019143,2]
[373347495,1752959439347,-460.0,0.00019143,2]
[373347497,1752959439357,-460.0,0.00019143,2]
[373347499,1752959439367,-460.0,0.00019143,2]
[373347501,1752959439377,-460.0,0.00019143,2]
[373347503,1752959439387,-460.0,0.00019143,2]
[373347505,1752959439397,-460.0,0.00019143,2]
[373347506,1752959439408,-671.0,0.00019144,2]
[373347507,1752959439417,-198.0,0.00019144,2]
[373347508,1752959439427,-506.89194858,0.00019144,2]
[373347509,1752959439437,-198.0,0.00019144,2]
[373347510,1752959439446,-151.0,0.00019144,2]
[373347511,1752959439456,-151.0,0.00019144,2]
[373347512,1752959439466,-151.0,0.00019144,2]
[373347513,1752959439475,-151.0,0.00019144,2]
[373347514,1752959439485,-151.0,0.00019144,2]
[373347515,1752959439495,-151.0,0.00019144,2]
[373347516,1752959439505,-546.0,0.00019144,2]
[373347517,1752959439514,-460.0,0.00019144,2]
[373347518,1752959439523,-1198.7,0.00019144,2]
[373347519,1752959439533,-460.0,0.00019144,2]
[373347520,1752959439543,-460.0,0.00019144,2]
[373347521,1752959439553,-721.24,0.00019144,2]
[373347522,1752959439563,-857.57,0.00019144,2]
[373347523,1752959439573,-460.0,0.00019144,2]
[373347524,1752959439583,-898.29,0.00019144,2]
[373347525,1752959439592,-151.0,0.00019178,2]
[373347526,1752959439726,-247.18468876,0.00019178,2]
[373347527,1752959439737,-310.795439,0.00019178,2]
[373347528,1752959439747,-500.0,0.00019415,2]
[373347529,1752959439757,-500.0,0.00019415,2]
[373347530,1752959439766,-500.0,0.00019415,2]
[373347531,1752959439775,-500.0,0.00019415,2]
[373347533,1752959439785,-500.0,0.00019415,2]
[373347535,1752959439795,-500.0,0.00019415,2]
[373347537,1752959439804,-471.14584976,0.00019415,2]
[373347539,1752959439814,-500.0,0.00019415,2]
[373347540,1752959439823,-500.0,0.00019415,2]
[373347541,1752959439832,-500.0,0.00019415,2]
[373347542,1752959439842,-500.0,0.00019415,2]
[373347543,1752959439851,-500.0,0.00019415,2]
[373347544,1752959439861,-500.0,0.00019415,2]
[373347545,1752959439870,-174.06416626,0.00019415,2]
[373347547,1752959439879,-500.0,0.00019415,2]
[373347548,1752959439888,-500.0,0.00019415,2]
[373347549,1752959439898,-303.14909525,0.00019415,2]
[373347550,1752959439908,-500.0,0.00019415,2]
[373347551,1752959439917,-500.0,0.00019415,2]
[373347552,1752959439927,-500.0,0.00019415,2]
[373347553,1752959439937,-500.0,0.00019415,2]
[373347554,1752959439947,-500.0,0.00019415,2]
[373347555,1752959439958,-500.0,0.00019415,2]
[373347556,1752959439968,-500.0,0.00019415,2]
[373347557,1752959439977,-500.0,0.00019415,2]
[373347558,1752959439987,-500.0,0.00019415,2]
[373347559,1752959439996,-500.0,0.00019415,2]
[373347560,1752959440006,-500.0,0.00019415,2]
[373347561,1752959440015,-500.0,0.00019415,2]
[373347562,1752959440025,-500.0,0.00019415,2]
[373347563,1752959440035,-166.60266158,0.00019415,2]
[373347564,1752959440044,-500.0,0.00019415,2]
[373347565,1752959440054,-500.0,0.00019415,2]
[373347566,1752959440064,-601.36223097,0.00019415,2]
[373347567,1752959440074,-500.0,0.00019415,2]
[373347568,1752959440083,-500.0,0.00019415,2]
[373347569,1752959440093,-500.0,0.00019415,2]
[373347570,1752959440105,-500.0,0.00019415,2]
[373347571,1752959440115,-500.0,0.00019415,2]
[373347572,1752959440125,-500.0,0.00019415,2]
[373347573,1752959440135,-500.0,0.00019415,2]
[373347574,1752959440145,-500.0,0.00019415,2]
[373347575,1752959440155,-547.00453091,0.00019415,2]
[373347576,1752959440165,-500.0,0.00019415,2]
[373347577,1752959440175,-500.0,0.00019415,2]
[373347578,1752959440185,-530.83582147,0.00019415,2]
[373347579,1752959440195,-500.0,0.00019415,2]
[373347580,1752959440205,-500.0,0.00019415,2]
[373347581,1752959440215,-500.0,0.00019415,2]
[373347582,1752959440224,-500.0,0.00019415,2]
[373347583,1752959440234,-500.0,0.00019415,2]
[373347584,1752959440244,-500.0,0.00019415,2]
[373347585,1752959440254,-500.0,0.00019415,2]
[373347586,1752959440264,-500.0,0.00019415,2]
[373347587,1752959440273,-500.0,0.00019415,2]
[373347588,1752959440283,-500.0,0.00019415,2]
[373347589,1752959440292,-500.0,0.00019415,2]
[373347590,1752959440301,-500.0,0.00019415,2]
[373347591,1752959440311,-500.0,0.00019415,2]
[373347592,1752959440320,-500.0,0.00019415,2]
[373347593,1752959440329,-500.0,0.00019415,2]
[373347594,1752959440338,-500.0,0.00019415,2]
[373347595,1752959440347,-500.0,0.00019415,2]
[373347596,1752959440356,-500.0,0.00019415,2]
[373347597,1752959440367,-500.0,0.00019415,2]
[373347598,1752959440376,-500.0,0.00019415,2]
[373347599,1752959440386,-500.0,0.00019415,2]
[373347600,1752959440395,-500.0,0.00019415,2]
[373347601,1752959440407,-500.0,0.00019415,2]
[373347602,1752959440416,-500.0,0.00019415,2]
[373347603,1752959440427,-500.0,0.00019415,2]
[373347604,1752959440436,-500.0,0.00019415,2]
[373347605,1752959440446,-500.0,0.00019415,2]
[373347606,1752959440456,-500.0,0.00019415,2]
[373347607,1752959440465,-500.0,0.00019415,2]
[373347608,1752959440476,-500.0,0.00019415,2]
[373347609,1752959440485,-500.0,0.00019415,2]
[373347610,1752959440495,-500.0,0.00019415,2]
[373347612,1752959440504,-500.0,0.00019415,2]
[373347614,1752959440514,-500.0,0.00019415,2]
[373347616,1752959440523,-500.0,0.00019415,2]
[373347617,1752959440533,-500.0,0.00019415,2]
[373347618,1752959440543,-500.0,0.00019415,2]
[373347619,1752959440552,-500.0,0.00019415,2]
[373347620,1752959440564,-500.0,0.00019415,2]
[373347621,1752959440574,-500.0,0.00019415,2]
[373347622,1752959440583,-500.0,0.00019415,2]
[373347623,1752959440593,-500.0,0.00019415,2]
[373347624,1752959440603,-500.0,0.00019415,2]
[373347625,1752959440613,-500.0,0.00019415,2]
[373347626,1752959440623,-506.78472545,0.00019415,2]
[373347627,1752959440632,-500.0,0.00019415,2]
[373347628,1752959440642,-500.0,0.00019415,2]
[373347629,1752959440653,-500.0,0.00019415,2]
[373347630,1752959440665,-500.0,0.00019415,2]
[373347631,1752959440678,-500.0,0.00019415,2]
[373347632,1752959440688,-500.0,0.00019415,2]
[373347633,1752959440698,-500.0,0.00019415,2]
[373347634,1752959440708,-500.0,0.00019415,2]
[373347635,1752959440719,-500.0,0.00019415,2]
[373347636,1752959440730,-500.0,0.00019415,2]
[373347637,1752959440740,-500.0,0.00019415,2]
[373347638,1752959440751,-500.0,0.00019415,2]
[373347639,1752959440762,-500.0,0.00019415,2]
[373347640,1752959440772,-500.0,0.00019415,2]
[373347641,1752959440782,-500.0,0.00019415,2]
[373347642,1752959440792,-500.0,0.00019415,2]
[373347643,1752959440802,-402.19727639,0.00019415,2]
[373347644,1752959440811,-500.0,0.00019415,2]
[373347645,1752959440821,-500.0,0.00019415,2]
[373347646,1752959440830,-500.0,0.00019415,2]
[373347647,1752959440840,-1053.43,0.00019416,2]
[373347648,1752959440850,-1264.3,0.00019416,2]
[373347649,1752959440859,-460.0,0.00019416,2]
[373347650,1752959440869,-1122.31,0.00019416,2]
[373347651,1752959440880,-470.95,0.00019416,2]
[373347652,1752959440890,-490.42,0.00019416,2]
[373347653,1752959440901,-573.84,0.00019416,2]
[373347654,1752959440911,-575.08,0.00019416,2]
[373347655,1752959440921,-250.38,0.00019416,2]
[373347656,1752959440930,-1489.39,0.00019416,2]
[373347657,1752959440940,-460.0,0.00019417,2]
[373347658,1752959440950,-460.0,0.00019417,2]
[373347659,1752959440960,-460.0,0.00019417,2]
[373347660,1752959440969,-460.0,0.00019417,2]
[373347661,1752959440980,-314.63,0.00019417,2]
[373347662,1752959440990,-460.0,0.00019417,2]
[373347663,1752959440999,-460.0,0.00019417,2]
[373347664,1752959441009,-460.0,0.00019417,2]
[373347665,1752959441019,-202.96,0.00019417,2]
[373347666,1752959441030,-460.0,0.00019417,2]
[373347667,1752959441040,-460.0,0.00019417,2]
[373347668,1752959441050,-594.86,0.00019417,2]
[373347669,1752959441060,-653.24,0.00019417,2]
[373347670,1752959441069,-460.0,0.00019417,2]
[373347671,1752959441079,-460.0,0.00019417,2]
[373347672,1752959441089,-460.0,0.00019417,2]
[373347673,1752959441098,-460.0,0.00019417,2]
[373347674,1752959441108,-671.0,0.00019418,2]
[373347675,1752959441118,-219.34497079,0.00019418,2]
[373347676,1752959441127,-198.0,0.00019418,2]
[373347677,1752959441137,-198.0,0.00019418,2]
[373347678,1752959441146,-151.0,0.00019418,2]
[373347679,1752959441156,-151.0,0.00019418,2]
[373347680,1752959441165,-546.0,0.00019418,2]
[373347681,1752959441175,-460.0,0.00019418,2]
[373347682,1752959441184,-1198.7,0.00019418,2]
[373347683,1752959441194,-460.0,0.00019418,2]
[373347684,1752959441204,-314.24,0.00019418,2]
[373347685,1752959441213,-721.24,0.00019418,2]
[373347686,1752959441223,-857.57,0.00019418,2]
[373347687,1752959441232,-460.0,0.00019418,2]
[373347688,1752959441242,-898.29,0.00019418,2]
[373347689,1752959441251,-700.0,0.0001942,2]
[373347690,1752959441261,-175.07,0.00019437,3]
[373347691,1752959441271,-525.23,0.00019437,3]
[373347692,1752959441280,-291.33809974,0.00019473,2]